bitfinex-derivatives/quotes_ETHF0:USTF0_20260223
["timestamp","ask_amount","ask_price","bid_price","bid_amount"]
[1771868233972,5.51326301,1845.5,1844.3,5.37862697]
[1771868234175,5.51326301,1845.1,1844.0,6.95143108]
[1771868234472,5.51326301,1844.9,1843.7,5.37862697]
[1771868234673,5.51326301,1844.7,1843.8,3.30459543]
[1771868234972,5.51326301,1844.3,1843.5,0.00622004]
[1771868235167,5.51326301,1844.0,1843.0,5.37862697]
[1771868235368,5.51326301,1843.8,1842.7,5.37862697]
[1771868235577,5.51326301,1844.2,1842.9,5.37862697]
[1771868236268,5.51326301,1844.2,1842.3,6.67679]
[1771868236269,0.006873,1844.3,1843.2,5.37862697]
[1771868236864,0.006873,1844.3,1843.5,5.37862697]
[1771868237069,5.52013601,1844.3,1843.1,5.37862697]
[1771868237269,5.52013601,1844.3,1843.2,5.37862697]
[1771868237864,5.52013601,1844.3,1843.4,6.90033935]
[1771868238074,11.52271142,1844.1,1842.9,6.90593826]
[1771868238277,6.85874947,1844.0,1842.9,6.90593826]
[1771868238579,6.85874947,1843.5,1842.6,6.90033935]
[1771868238969,6.85874947,1843.5,1841.9,6.90033935]
[1771868239376,6.85874947,1843.5,1842.1,6.90033935]
[1771868239767,6.85874947,1843.5,1842.1,6.90620895]
[1771868240170,6.85874947,1843.5,1842.3,6.62842933]
[1771868240372,6.87855881,1843.3,1842.1,6.63429893]
[1771868241080,7.14972881,1844.0,1842.5,6.62842933]
[1771868241369,6.87855881,1843.7,1842.5,6.62842933]
[1771868241573,6.87855881,1843.4,1842.5,6.62842933]
[1771868242875,0.27125,1843.5,1842.8,6.62842933]
[1771868243083,6.87855881,1843.0,1842.2,6.62842933]
[1771868243276,6.8825617,1843.0,1842.1,6.63429893]
[1771868243479,6.8825617,1843.0,1842.5,6.62842933]
[1771868243480,0.00400289,1843.0,1842.5,6.62842933]
[1771868243978,6.87855881,1843.4,1842.8,4.41475778]
[1771868244174,6.87855881,1843.4,1842.7,6.62842933]
[1771868244376,6.87855881,1843.4,1842.3,6.62842933]
[1771868244574,6.87855881,1843.4,1842.5,11.04318711]
[1771868244772,6.88357453,1843.4,1842.5,6.62842933]
[1771868244971,6.87855881,1843.2,1842.2,6.62842933]
[1771868246073,6.87855881,1843.2,1842.3,4.41475778]
[1771868246374,6.87855881,1843.2,1842.2,6.62842933]
[1771868246570,6.87855881,1843.2,1842.4,4.41475778]
[1771868246880,0.00501572,1843.4,1842.5,6.62842933]
[1771868247176,6.88357453,1843.4,1842.5,6.62842933]
[1771868247371,6.87855881,1844.4,1842.7,6.62842933]
[1771868247593,6.87855881,1844.7,1843.3,6.62842933]
[1771868247772,13.54774881,1844.5,1843.3,6.62842933]
[1771868247975,6.87855881,1844.3,1843.3,6.62842933]
[1771868248481,6.88341747,1844.3,1843.4,11.02318711]
[1771868248778,6.88341747,1844.3,1843.4,6.63508058]
[1771868248973,6.88341747,1844.3,1843.5,11.02318711]
[1771868249371,6.87855881,1844.1,1843.4,0.00665125]
[1771868249577,6.87855881,1844.1,1843.0,6.62842933]
[1771868250578,6.87855881,1844.1,1843.0,6.63387756]
[1771868250980,0.00485866,1844.3,1843.0,6.63387756]
[1771868251183,0.00485866,1844.3,1843.0,6.90519756]
[1771868251382,0.00485866,1844.3,1843.2,6.89971933]
[1771868253079,0.00485866,1844.3,1843.4,6.62842933]
[1771868253478,0.00485866,1844.3,1843.4,13.30152933]
[1771868253683,6.87855881,1845.2,1843.8,6.89962933]
[1771868254081,6.87855881,1845.0,1843.8,6.62842933]
[1771868254286,6.87855881,1844.8,1843.8,6.62842933]
[1771868254588,6.87855881,1845.0,1843.8,6.62842933]
[1771868254785,7.6074397,1844.9,1843.8,6.62842933]
[1771868254988,7.6074397,1844.8,1843.8,6.62842933]
[1771868255286,7.6074397,1844.7,1843.8,6.62842933]
[1771868255487,0.72888089,1844.6,1843.8,6.62842933]
[1771868256586,6.87855881,1844.9,1843.8,6.62842933]
[1771868256782,0.73096232,1844.8,1843.8,6.62842933]
[1771868256979,0.73096232,1844.7,1843.8,6.62842933]
[1771868257183,6.87855881,1844.9,1843.8,6.62842933]
[1771868257388,6.87855881,1844.7,1843.8,6.62842933]
[1771868257586,6.88395366,1845.0,1843.8,6.62842933]
[1771868257790,0.00539485,1845.0,1844.0,6.62842933]
[1771868258086,4.93490195,1845.7,1844.2,6.62842933]
[1771868258386,0.7266002,1845.6,1844.7,6.62842933]
[1771868258691,6.87855881,1846.1,1844.9,6.62842933]
[1771868258884,0.72684582,1846.0,1844.9,6.62842933]
[1771868259078,4.93475195,1846.7,1845.1,6.62842933]
[1771868259079,6.87855881,1846.6,1845.1,6.62842933]
[1771868259281,0.00687534,1846.0,1845.1,6.62842933]
[1771868259488,6.87855881,1847.0,1845.5,6.62842933]
[1771868259780,6.87855881,1846.8,1845.5,6.62842933]
[1771868259989,0.72692072,1846.7,1845.5,6.62842933]
[1771868260184,6.87855881,1846.5,1845.5,6.62842933]
[1771868260390,6.87855881,1846.1,1845.0,6.62842933]
[1771868260690,7.60535235,1846.0,1845.0,6.62842933]
[1771868260882,6.87855881,1846.0,1845.0,6.62842933]
[1771868261692,7.14940881,1846.2,1845.0,6.62842933]
[1771868261890,0.72491293,1846.1,1845.0,6.62842933]
[1771868262188,6.87855881,1846.4,1845.0,6.62842933]
[1771868262492,0.72446538,1846.3,1845.0,6.62842933]
[1771868262685,6.87855881,1846.4,1845.0,6.62842933]
[1771868262881,0.72452074,1846.3,1845.0,6.62842933]
[1771868263090,6.87855881,1846.4,1845.0,6.62842933]
[1771868263286,6.87855881,1846.1,1845.0,6.62842933]
[1771868263486,7.14943881,1846.0,1845.0,6.62842933]
[1771868263887,4.66396195,1846.2,1845.0,6.62842933]
[1771868264094,7.15413122,1846.5,1845.0,6.62842933]
[1771868264294,6.87855881,1846.2,1845.0,6.62842933]
[1771868265985,6.87855881,1846.2,1845.0,6.89944933]
[1771868266190,6.88332122,1846.5,1845.0,6.89944933]
[1771868266393,6.88332122,1846.5,1845.2,6.62842933]
[1771868266688,6.87855881,1846.3,1845.2,6.62842933]
[1771868267092,6.87855881,1846.1,1845.2,6.62842933]
[1771868268790,7.16765577,1846.2,1845.2,6.62842933]
[1771868269090,6.90156818,1846.5,1845.2,6.62842933]
[1771868269890,6.89680577,1846.3,1845.2,6.62842933]
[1771868270487,0.00476241,1846.5,1845.3,6.90385464]
[1771868270791,6.90156818,1846.5,1845.4,6.63287464]
[1771868270991,6.90156818,1846.5,1845.6,6.63287464]
[1771868271295,0.00476241,1846.5,1845.6,6.63287464]
[1771868271993,6.90156818,1846.5,1845.6,6.63287464]
[1771868272490,0.00476241,1846.5,1845.6,6.63287464]
[1771868273192,6.90156818,1846.5,1845.6,6.63287464]
[1771868273500,6.89680577,1846.3,1845.3,6.63287464]
[1771868273790,7.16765577,1846.2,1845.3,6.63287464]
[1771868274893,0.27091,1845.8,1845.0,6.63287464]
[1771868275094,6.89680577,1845.9,1845.0,6.63287464]
[1771868275399,7.16765577,1846.2,1845.0,6.63287464]
[1771868275594,0.27085,1846.2,1845.2,6.63287464]
[1771868276491,6.89680577,1846.4,1845.2,6.63287464]
[1771868276693,0.00476241,1846.5,1845.6,6.63287464]
[1771868276894,0.00476241,1846.5,1845.1,6.66692]
[1771868276895,0.00476241,1846.5,1845.8,6.63287464]
[1771868277498,6.90156818,1846.5,1845.8,6.63287464]
[1771868277796,0.00476241,1846.5,1845.8,6.63287464]
[1771868280198,6.90156818,1846.5,1845.8,6.63287464]
[1771868280798,6.90156818,1846.5,1845.1,0.27101]
[1771868280799,7.88997118,1846.4,1845.2,6.63287464]
[1771868281004,7.16766577,1846.1,1845.2,6.63287464]
[1771868281298,0.72289954,1846.0,1845.2,6.63287464]
[1771868281500,6.89680577,1846.0,1845.2,6.63287464]
[1771868281799,6.90156818,1846.5,1845.2,6.63287464]
[1771868281995,6.89680577,1846.3,1845.4,6.63287464]
[1771868282197,0.27558241,1846.5,1845.4,6.63287464]
[1771868282498,6.89680577,1846.9,1846.0,6.63287464]
[1771868282693,7.62066098,1846.8,1845.9,6.63287464]
[1771868282901,6.89680577,1847.3,1846.1,6.63287464]
[1771868283099,7.6207575,1847.2,1846.1,6.63287464]
[1771868283399,0.27067,1847.5,1846.1,6.63287464]
[1771868283400,0.72395173,1847.1,1846.1,6.63287464]
[1771868283703,6.89680577,1847.9,1846.6,6.90366464]
[1771868284002,0.2706,1848.0,1846.6,6.90366464]
[1771868284003,6.89680577,1847.7,1846.7,6.63287464]
[1771868284201,0.72451489,1847.6,1846.7,6.63287464]
[1771868284394,0.2706,1848.0,1846.7,6.63287464]
[1771868284705,0.2706,1848.0,1846.9,6.63287464]
[1771868284706,0.72431167,1847.9,1846.9,6.63287464]
[1771868285000,0.00383223,1848.0,1847.0,6.88300014]
[1771868285202,0.00383223,1848.0,1847.1,6.63287464]
[1771868285397,6.89680577,1849.0,1847.6,13.56142464]
[1771868285704,0.72463559,1848.9,1847.9,6.63287464]
[1771868285894,7.16728577,1848.7,1847.9,6.63287464]
[1771868286101,7.62144136,1848.6,1847.6,6.63287464]
[1771868286401,0.72463559,1848.5,1847.6,6.63287464]
[1771868286705,7.62144136,1848.4,1847.6,6.63287464]
[1771868286904,0.72463559,1848.3,1847.6,6.63287464]
[1771868287203,0.72463559,1848.2,1847.6,6.63287464]
[1771868287397,0.72463559,1848.1,1847.6,6.63287464]
[1771868287603,6.89680577,1848.4,1847.6,6.63287464]
[1771868287801,0.72353706,1848.3,1847.6,6.63287464]
[1771868288004,0.00467086,1848.6,1847.6,6.63287464]
[1771868288208,7.62037658,1848.5,1847.6,6.63287464]
[1771868288402,7.62037658,1848.4,1847.6,6.63287464]
[1771868288600,0.00467086,1848.6,1847.6,6.63287464]
[1771868288803,0.00467086,1848.6,1847.8,6.63287464]
[1771868289104,7.61993568,1848.5,1847.8,6.63287464]
[1771868289306,7.61993568,1848.4,1847.6,6.63287464]
[1771868289508,0.72312991,1848.3,1847.6,6.63287464]
[1771868289808,6.89680577,1848.4,1847.6,6.63287464]
[1771868290398,6.90147663,1848.6,1847.6,6.63287464]
[1771868290599,0.72175366,1848.5,1847.6,6.63287464]
[1771868290811,0.00467086,1848.6,1847.6,6.63287464]
[1771868291107,6.90147663,1848.6,1847.6,6.63287464]
[1771868291409,0.27054,1848.3,1847.6,6.63287464]
[1771868292306,7.61731326,1848.2,1847.4,6.63287464]
[1771868292506,6.89680577,1848.2,1847.4,6.63287464]
[1771868292806,6.65687,1847.9,1846.9,6.63287464]
[1771868293008,7.61709246,1847.8,1846.9,6.63287464]
[1771868293210,0.72028669,1847.7,1846.9,6.63287464]
[1771868293411,0.27063,1847.7,1846.9,6.63287464]
[1771868294109,0.27056,1848.2,1846.9,6.63287464]
[1771868294408,6.89680577,1847.9,1847.1,6.63287464]
[1771868294808,6.89680577,1848.2,1847.1,6.63287464]
[1771868295013,6.89680577,1848.4,1847.1,6.63287464]
[1771868295309,7.88791717,1848.3,1847.1,6.63287464]
[1771868295512,7.61737717,1848.2,1847.1,6.63287464]
[1771868295705,0.7205714,1848.1,1847.1,6.63287464]
[1771868296015,6.65935086,1848.6,1847.3,6.63287464]
[1771868296016,0.00467086,1848.6,1847.3,6.63287464]
[1771868296509,6.89680577,1848.4,1847.3,6.63287464]
[1771868297104,0.27051,1848.5,1847.3,6.63287464]
[1771868298401,0.00467086,1848.6,1847.5,6.41370643]
[1771868299406,0.27045,1849.0,1847.7,6.41370643]
[1771868299606,0.72061566,1848.9,1847.7,6.41370643]
[1771868299900,0.27045,1849.0,1847.9,6.41370643]
[1771868300107,6.58130056,1848.7,1847.9,6.41370643]
[1771868300412,6.58804187,1848.7,1847.9,6.41370643]
[1771868300605,0.00674131,1848.7,1847.9,6.41370643]
[1771868301113,6.58804187,1848.7,1847.9,6.41370643]
[1771868301308,6.58130056,1848.3,1847.3,6.51165338]
[1771868301507,0.27056,1848.2,1847.3,6.51165338]
[1771868302111,0.27723131,1848.7,1847.3,6.51165338]
[1771868302309,6.85183056,1848.4,1847.3,6.51165338]
[1771868302506,0.71630092,1848.3,1847.3,6.51165338]
[1771868302707,0.27053,1848.4,1847.3,6.51165338]
[1771868302912,0.00674131,1848.7,1847.3,6.78233338]
[1771868303113,0.71635591,1848.6,1847.5,6.51165338]
[1771868303310,0.71635591,1848.5,1847.5,6.51165338]
[1771868303609,0.00674131,1848.7,1847.7,6.78228338]
[1771868303812,6.58130056,1849.1,1847.7,6.78228338]
[1771868304010,0.98717646,1849.0,1847.9,6.51165338]
[1771868304212,0.27044,1849.0,1847.9,6.51165338]
[1771868304602,6.58130056,1849.3,1847.9,6.51165338]
[1771868304814,0.71707871,1849.2,1847.9,6.51165338]
[1771868305002,0.98750871,1849.1,1847.9,6.51165338]
[1771868305208,0.27048,1848.7,1847.9,6.51165338]
[1771868305705,6.58130056,1849.1,1847.9,6.51165338]
[1771868306007,0.71811623,1849.0,1847.9,6.51165338]
[1771868306208,7.56986679,1848.9,1847.9,6.51165338]
[1771868306515,0.71811623,1848.8,1847.9,6.51165338]
[1771868306708,6.85172056,1849.1,1848.1,6.51165338]
[1771868307008,0.71863142,1849.0,1848.1,6.51715198]
[1771868307307,0.27047,1848.8,1848.1,6.51715198]
[1771868307515,0.71863142,1848.7,1848.1,6.51715198]
[1771868308111,6.85180056,1848.6,1848.1,0.0054986]
[1771868308310,0.71863142,1848.5,1847.9,6.51165338]
[1771868308510,6.85183056,1848.4,1847.7,6.51165338]
[1771868308704,0.27056,1848.2,1847.7,5.49115199]
[1771868308910,0.27058,1848.0,1847.5,6.51165338]
[1771868309214,7.29993198,1847.9,1847.5,0.00698332]
[1771868309406,0.71863142,1847.8,1847.5,0.00698332]
[1771868309911,0.27063,1847.7,1847.1,6.51165338]
[1771868310113,0.71863142,1847.6,1847.1,6.51165338]
[1771868310308,0.27066,1847.5,1846.8,6.51165338]
[1771868310511,0.71863142,1847.4,1846.8,6.51165338]
[1771868310713,0.27069,1847.3,1846.5,6.51165338]
[1771868310914,7.29993198,1847.2,1846.8,0.00674035]
[1771868311110,0.71863142,1847.1,1846.8,0.00674035]
[1771868311314,0.71863142,1847.1,1846.5,6.51165338]
[1771868311816,6.58130056,1847.7,1846.5,6.51165338]
[1771868312014,0.27062,1847.8,1845.8,6.6644]
[1771868312015,6.85192056,1847.8,1846.7,6.51165338]
[1771868312217,13.5289728,1847.7,1846.7,6.51777472]
[1771868312414,0.27062,1847.8,1846.7,6.51777472]
[1771868312613,0.00655056,1848.0,1846.7,6.51777472]
[1771868312813,13.54020228,1847.9,1846.9,6.51165338]
[1771868313016,6.85191056,1847.9,1846.9,6.51165338]
[1771868313220,6.85193056,1847.7,1846.9,6.51165338]
[1771868313518,6.89650739,1847.6,1846.9,6.51165338]
[1771868313718,6.85193056,1847.7,1846.9,6.51165338]
[1771868314214,6.58785112,1848.0,1846.9,6.51165338]
[1771868314521,0.00655056,1848.0,1846.9,6.51165338]
[1771868314713,0.00655056,1848.0,1847.1,6.51165338]
[1771868315208,6.58785112,1848.0,1847.1,6.51165338]
[1771868315519,6.85190056,1847.9,1847.1,6.51165338]
[1771868316520,6.90026421,1847.8,1847.1,6.51165338]
[1771868316819,6.85193056,1847.7,1847.1,6.51165338]
[1771868317414,0.27063,1847.7,1847.1,6.51165338]
[1771868317617,0.00655056,1848.0,1847.1,6.51165338]
[1771868318417,6.58130056,1847.8,1846.8,6.51165338]
[1771868318811,7.16923036,1847.7,1846.8,6.51165338]
[1771868319016,0.27066,1847.5,1846.8,6.51165338]
[1771868319317,6.58130056,1847.9,1846.8,6.51165338]
[1771868319523,13.47963347,1847.8,1846.8,6.51165338]
[1771868319722,6.89833291,1847.7,1846.8,6.51165338]
[1771868320220,6.58130056,1847.8,1846.8,6.51165338]
[1771868322020,6.85193056,1847.7,1846.8,6.51165338]
[1771868322222,6.85196056,1847.5,1846.8,6.51165338]
[1771868322418,6.85196056,1847.5,1846.7,6.51777472]
[1771868323416,13.47562441,1847.4,1846.7,6.51777472]
[1771868323625,6.58130056,1847.4,1846.7,6.51777472]
[1771868323819,0.71181368,1847.3,1846.7,6.51777472]
[1771868324119,0.71181368,1847.2,1846.7,6.51777472]
[1771868324315,0.71181368,1847.1,1846.7,6.51777472]
[1771868324628,0.27069,1847.3,1846.7,6.51777472]
[1771868324816,0.71159517,1847.2,1846.7,6.51777472]
[1771868325016,0.71159517,1847.1,1846.7,6.51777472]
[1771868325223,6.85193056,1847.7,1846.7,6.51777472]
[1771868325419,6.88921387,1847.6,1846.7,6.51777472]
[1771868325619,6.85193056,1847.7,1846.7,6.51777472]
[1771868325820,6.85196056,1847.5,1846.7,6.51777472]
[1771868326329,6.85199056,1847.3,1846.7,6.51777472]
[1771868326521,6.85199056,1847.3,1846.7,0.00612134]
[1771868327621,0.27069,1847.3,1846.8,7.0375598]
[1771868327822,7.06962587,1847.3,1846.8,7.0375598]
[1771868328023,7.06962587,1847.3,1846.7,0.00612134]
[1771868329316,7.06956587,1847.7,1846.7,7.04368114]
[1771868331728,7.06959587,1847.5,1846.7,7.04368114]
[1771868332629,7.06965587,1847.1,1846.7,0.00612134]
[1771868332826,0.27066,1847.5,1846.7,7.04368114]
[1771868333224,0.2706,1847.9,1846.7,7.31445114]
[1771868333426,7.06953587,1847.9,1846.7,7.04368114]
[1771868333730,0.27064,1847.6,1846.7,7.04368114]
[1771868334124,7.06957587,1847.6,1846.7,7.04368114]
[1771868334324,0.27064,1847.6,1846.7,7.04368114]
[1771868334924,6.79893587,1847.8,1846.7,7.04368114]
[1771868335925,0.00655056,1848.0,1846.9,7.0375598]
[1771868336227,0.00655056,1848.0,1847.1,7.0375598]
[1771868337027,0.27053,1848.4,1847.1,7.0375598]
[1771868337326,0.27058,1848.0,1847.1,7.0375598]
[1771868337529,0.70795863,1847.9,1847.1,7.0375598]
[1771868337729,0.27058,1848.0,1847.1,7.0375598]
[1771868337923,0.27564313,1848.0,1847.1,7.0375598]
[1771868338123,10.28222779,1847.9,1847.1,7.0375598]
[1771868338328,7.06954587,1847.8,1847.1,7.0375598]
[1771868340037,7.06954587,1847.8,1846.8,7.0375598]
[1771868340038,7.06960587,1847.5,1846.8,7.0375598]
[1771868341037,7.06960587,1847.5,1846.7,0.00612134]
[1771868341333,7.06969587,1846.8,1846.2,7.0375598]
[1771868341533,7.06969587,1846.8,1844.9,6.66753]
[1771868341534,6.79893587,1846.5,1845.7,7.0375598]
[1771868341737,17.17675501,1846.4,1845.4,7.0375598]
[1771868341945,6.79893587,1846.6,1845.4,7.0375598]
[1771868342238,6.79893587,1846.5,1845.4,7.04265505]
[1771868343337,0.00611245,1846.6,1845.4,7.04265505]
[1771868344231,0.00611245,1846.6,1845.5,7.14891804]
[1771868344429,0.00611245,1846.6,1845.6,7.0375598]
[1771868345035,6.79893587,1846.9,1845.8,7.0375598]
[1771868345340,6.79893587,1846.9,1845.7,6.90525207]
[1771868345341,7.06966587,1847.0,1846.0,7.0375598]
[1771868345642,0.27073,1847.0,1846.0,7.0375598]
[1771868345841,6.79893587,1847.2,1846.0,7.0375598]
[1771868346040,6.80523563,1847.2,1846.2,7.0375598]
[1771868346440,0.00629976,1847.2,1846.2,7.0375598]
[1771868346635,0.00629976,1847.2,1846.4,7.0375598]
[1771868346836,0.27067,1847.5,1846.4,7.0375598]
[1771868347135,6.79893587,1847.9,1846.6,7.0375598]
[1771868347337,6.79893587,1847.9,1846.6,47.8375598]
[1771868347532,6.79893587,1847.9,1846.8,7.0375598]
[1771868347731,6.79893587,1848.2,1847.0,7.0375598]
[1771868347937,6.80465512,1848.2,1847.0,7.04402662]
[1771868348240,7.06950587,1848.1,1847.0,7.04402662]
[1771868348537,6.79893587,1847.8,1847.0,7.04402662]
[1771868348836,0.2706,1847.9,1847.0,7.04402662]
[1771868349038,0.00571925,1848.2,1847.0,7.04402662]
[1771868349238,0.00571925,1848.2,1847.2,7.0375598]
[1771868349541,7.06950587,1848.1,1847.2,7.0375598]
[1771868349742,6.79893587,1847.9,1847.2,7.0375598]
[1771868349942,0.69353804,1847.8,1847.2,7.0375598]
[1771868350243,6.79893587,1847.9,1847.2,7.0375598]
[1771868350447,7.49236527,1847.8,1847.0,7.04402662]
[1771868350645,6.79893587,1847.4,1847.0,0.00646682]
[1771868351738,0.27066,1847.5,1847.0,7.04402662]
[1771868351938,6.79893587,1847.7,1847.0,7.04402662]
[1771868352147,6.79893587,1847.9,1847.0,7.04402662]
[1771868352342,6.79893587,1847.7,1847.0,7.04402662]
[1771868352536,7.4922443,1847.6,1847.0,7.04402662]
[1771868352741,6.79893587,1847.6,1847.0,0.00646682]
[1771868352942,6.79893587,1847.4,1846.7,7.0375598]
[1771868353941,6.79893587,1847.4,1846.7,7.04278897]
[1771868355248,7.76267294,1847.3,1846.7,0.00522917]
[1771868355445,6.79893587,1847.0,1845.9,7.0375598]
[1771868355844,6.79893587,1847.0,1846.1,7.0375598]
[1771868356150,0.27072,1847.1,1846.1,7.0375598]
[1771868356446,0.27072,1847.1,1846.1,7.0441811]
[1771868357549,0.27072,1847.1,1846.3,7.0375598]
[1771868357748,7.16606431,1847.4,1846.3,7.0375598]
[1771868358146,7.43671431,1847.6,1846.5,6.76629729]
[1771868358347,0.69322653,1847.5,1846.5,6.76629729]
[1771868358645,0.27065,1847.6,1846.5,6.76629729]
[1771868358844,0.27065,1847.6,1846.6,7.17982259]
[1771868359045,7.43665431,1848.0,1846.7,7.03705729]
[1771868359252,0.69350535,1847.9,1846.7,7.03705729]
[1771868359453,0.69350535,1847.8,1846.9,6.76629729]
[1771868359745,0.27059,1848.0,1847.1,6.76629729]
[1771868360346,7.17178356,1848.2,1847.3,7.21902026]
[1771868360547,0.69379782,1848.1,1847.3,7.21902026]
[1771868360742,0.00571925,1848.2,1847.3,7.21902026]
[1771868361252,0.00571925,1848.2,1847.5,7.21902026]
[1771868361452,0.00571925,1848.2,1847.5,7.22334947]
[1771868362149,7.21560891,1848.6,1847.5,7.22334947]
[1771868362355,0.69347311,1848.5,1847.5,7.22334947]
[1771868362655,7.21560891,1848.6,1847.5,7.22334947]
[1771868362849,0.69340365,1848.5,1847.5,7.22334947]
[1771868363051,7.22133206,1848.5,1847.5,7.22334947]
[1771868363554,7.48617891,1848.1,1847.5,0.00432921]
[1771868366657,7.48617891,1848.1,1846.9,7.21902026]
[1771868366658,7.21560891,1847.8,1846.9,7.21902026]
[1771868367756,0.2706,1847.9,1846.9,7.22534621]
[1771868368061,7.48620891,1847.9,1846.9,7.22534621]
[1771868368359,3.48329192,1848.1,1846.9,7.22534621]
[1771868368360,7.21560891,1848.1,1846.9,7.22534621]
[1771868368660,7.48618891,1848.0,1847.1,7.21902026]
[1771868368854,7.21560891,1847.5,1846.9,0.00632595]
[1771868369065,7.48627891,1847.4,1846.9,0.00632595]
[1771868369257,7.48627891,1847.4,1846.7,7.21902026]
[1771868369663,0.27067,1847.4,1846.7,7.21902026]
[1771868369862,7.48627891,1847.4,1846.7,7.21902026]
[1771868370366,7.48627891,1847.4,1846.7,7.22458075]
[1771868371069,0.27067,1847.4,1846.7,7.22458075]
[1771868372163,7.48622891,1847.8,1846.7,7.22458075]
[1771868372371,7.21560891,1847.5,1846.7,7.22458075]
[1771868373265,7.21560891,1847.9,1846.7,7.22458075]
[1771868373468,7.21560891,1847.6,1846.7,7.22458075]
[1771868373770,7.21560891,1847.4,1846.7,0.00556049]
[1771868373969,8.18044891,1847.3,1846.7,0.00556049]
[1771868374172,0.27069,1847.3,1846.7,7.22458075]
[1771868374369,7.21560891,1847.5,1846.7,7.22458075]
[1771868374867,7.48623891,1847.7,1846.7,7.22458075]
[1771868375072,0.69482937,1847.6,1846.7,7.22458075]
[1771868375366,7.48627891,1847.4,1846.7,0.00556049]
[1771868375571,7.48630891,1847.2,1846.7,0.00556049]
[1771868375773,7.21560891,1847.0,1846.7,0.00556049]
[1771868375974,7.21560891,1847.0,1846.4,7.21902026]
[1771868376273,7.48635891,1846.9,1846.2,7.21902026]
[1771868376573,7.21560891,1846.7,1846.0,7.21902026]
[1771868376872,7.21560891,1846.7,1846.0,7.22452976]
[1771868377069,6.66374382,1847.2,1846.5,7.21902026]
[1771868377070,0.00405382,1847.2,1846.5,7.21902026]
[1771868377273,7.21966273,1847.2,1846.2,7.21902026]
[1771868379270,0.00405382,1847.2,1846.4,7.21902026]
[1771868379873,0.00405382,1847.2,1846.5,7.21902026]
[1771868380978,7.21560891,1847.8,1846.7,7.21902026]
[1771868381275,7.21560891,1847.8,1846.9,7.21902026]
[1771868381676,7.21560891,1848.2,1846.9,7.21902026]
[1771868381881,7.21560891,1848.2,1846.8,0.27076]
[1771868381882,7.90609548,1848.1,1847.1,7.21902026]
[1771868382076,7.21560891,1847.9,1847.1,7.21902026]
[1771868382380,7.21560891,1848.1,1847.1,7.21902026]
[1771868382673,7.21560891,1847.9,1847.1,7.21902026]
[1771868382880,7.21560891,1847.7,1846.9,7.21902026]
[1771868383079,7.21560891,1847.5,1846.9,7.21902026]
[1771868384276,7.21560891,1847.7,1846.9,7.21902026]
[1771868384482,8.17644529,1847.6,1846.5,7.21902026]
[1771868384678,7.90580529,1847.5,1846.5,7.21902026]
[1771868384988,7.48624891,1847.6,1846.6,7.21902026]
[1771868385283,7.90594228,1847.5,1846.6,7.21902026]
[1771868385478,7.21560891,1847.5,1846.6,7.21902026]
[1771868387084,7.21560891,1847.3,1846.6,7.21902026]
[1771868387580,7.21560891,1847.3,1846.0,0.0055095]
[1771868387581,7.21560891,1847.3,1846.2,7.21902026]
[1771868387780,7.48630891,1847.3,1846.2,7.21902026]
[1771868387986,6.65873855,1847.5,1846.2,7.48986026]
[1771868388178,7.34944259,1847.4,1846.4,6.93227403]
[1771868388376,0.69070404,1847.3,1846.4,6.93227403]
[1771868388685,6.65873855,1847.4,1846.6,6.93227403]
[1771868391285,0.69121698,1847.3,1846.6,6.93227403]
[1771868391486,6.65873855,1847.1,1846.2,6.93227403]
[1771868391688,6.92946855,1847.1,1846.2,6.93227403]
[1771868391989,6.65873855,1846.9,1846.2,6.93227403]
[1771868392189,6.66264951,1846.9,1846.2,6.93227403]
[1771868392586,7.34995464,1846.8,1846.2,6.93227403]
[1771868392780,6.65873855,1846.8,1846.2,6.93227403]
[1771868392982,0.00391096,1846.9,1846.2,6.93227403]
[1771868393179,0.69169064,1846.8,1846.2,6.93227403]
[1771868393385,6.66264951,1846.9,1846.2,6.93227403]
[1771868393581,0.6915393,1846.8,1846.2,6.93227403]
[1771868393888,6.66264951,1846.9,1846.2,6.93227403]
[1771868394089,0.69149525,1846.8,1846.2,6.93227403]
[1771868394391,6.66264951,1846.9,1846.2,6.93227403]
[1771868394592,7.35022699,1846.8,1846.2,6.93227403]
[1771868394786,6.65873855,1846.8,1846.2,6.93227403]
[1771868395394,0.69129208,1846.7,1846.0,6.93778353]
[1771868395589,0.27077,1846.8,1846.0,6.93778353]
[1771868395783,0.69127352,1846.7,1846.0,6.93778353]
[1771868395983,0.27077,1846.8,1846.0,6.93778353]
[1771868396190,0.68678468,1846.7,1846.0,6.93778353]
[1771868396488,6.66264951,1846.9,1846.0,6.93778353]
[1771868396694,0.68688749,1846.8,1846.0,6.93778353]
[1771868396994,6.66264951,1846.9,1846.0,6.93778353]
[1771868397193,0.68686398,1846.8,1846.0,6.93778353]
[1771868397492,6.66264951,1846.9,1846.0,6.93778353]
[1771868397789,0.68680258,1846.8,1846.0,6.93778353]
[1771868397989,6.93340951,1846.9,1846.0,6.93778353]
[1771868398190,7.34543404,1846.8,1846.0,6.93778353]
[1771868398391,7.34543404,1846.7,1846.0,6.93778353]
[1771868398588,6.65873855,1846.5,1846.0,0.0055095]
[1771868398790,7.34543404,1846.4,1846.0,0.0055095]
[1771868398995,6.65873855,1846.4,1846.0,0.0055095]
[1771868399191,6.65873855,1846.4,1846.0,6.93778353]
[1771868399695,6.65873855,1846.4,1846.0,0.0055095]
[1771868399891,6.65873855,1846.6,1846.0,6.93778353]
[1771868400092,7.34468867,1846.5,1846.0,6.93778353]
[1771868400398,6.65873855,1846.8,1846.0,6.93778353]
[1771868400992,0.00391096,1846.9,1846.2,6.93227403]
[1771868401392,6.66264951,1846.9,1846.2,6.93227403]
[1771868401590,6.93339951,1846.9,1846.0,0.0055095]
[1771868401797,6.92951855,1846.7,1846.0,0.0055095]
[1771868402097,6.66264951,1846.9,1846.0,6.93778353]
[1771868402301,6.65873855,1847.4,1846.2,6.93227403]
[1771868402498,6.65873855,1847.1,1846.2,6.93227403]
[1771868402798,6.65873855,1846.9,1846.2,6.93227403]
[1771868403387,6.66352726,1846.9,1846.2,6.93227403]
[1771868404098,6.65873855,1846.7,1846.0,6.93778353]
[1771868404896,6.65873855,1846.5,1846.0,0.0055095]
[1771868405291,0.27079,1846.6,1845.2,0.27098]
[1771868405292,6.65873855,1846.3,1845.2,6.93227403]
[1771868405499,6.65873855,1845.9,1844.3,9.82943011]
[1771868405694,6.65873855,1845.7,1844.6,6.93227403]
[1771868405992,6.65873855,1845.7,1844.8,6.93227403]
[1771868406191,6.65873855,1845.5,1844.8,6.93803834]
[1771868406391,6.66367429,1845.5,1844.8,0.00576431]
[1771868407102,6.66367429,1845.5,1844.8,6.93803834]
[1771868408197,0.00493574,1845.5,1844.8,6.93803834]
[1771868408794,6.66367429,1845.5,1844.8,0.00576431]
[1771868410402,6.66367429,1845.5,1844.8,6.93803834]
[1771868411701,6.65873855,1846.1,1845.0,6.93227403]
[1771868412096,6.65873855,1845.7,1844.8,6.93803834]
[1771868412803,6.66258496,1845.7,1844.8,6.93803834]
[1771868413195,0.27094,1845.6,1844.8,6.93803834]
[1771868413394,6.65873855,1845.5,1844.8,6.93803834]